fUSD/lending_fUSD_20260506
["ID","MTS","AMOUNT","RATE_DAILY","PERIOD"]
[421700935,1778047896000,-200.0,0.00017728,2]
[421700927,1778047896000,-244.0,0.00017311,2]
[421700936,1778047896000,-2991.49051684,0.00017728,2]
[421700928,1778047896000,-151.85,0.00017337,2]
[421700930,1778047896000,-596.48180787,0.00017534,2]
[421700929,1778047896000,-312.928319,0.00017373,7]
[421700934,1778047896000,-500.0,0.00017726,2]
[421700923,1778047896000,-5229.91238371,0.00017192,2]
[421700962,1778047896000,-500.45374323,0.00018657,2]
[421701021,1778047896000,-1500.0,0.00019753,2]
[421700967,1778047896000,-501.42497213,0.00018657,2]
[421701004,1778047896000,-1000.0,0.00019205,2]
[421701007,1778047896000,-1000.0,0.00019262,2]
[421701002,1778047896000,-319.49667034,0.00019205,2]
[421701006,1778047896000,-1000.0,0.00019262,2]
[421701003,1778047896000,-807.4936949,0.00019205,2]
[421701005,1778047896000,-1000.0,0.00019205,2]
[421701009,1778047896000,-1000.0,0.00019262,2]
[421701008,1778047896000,-1000.0,0.00019262,2]
[421701011,1778047896000,-826.72763238,0.00019262,2]
[421701010,1778047896000,-1000.0,0.00019262,2]
[421701012,1778047896000,-281.0,0.0001932,2]
[421701013,1778047896000,-1072.84664855,0.000194,2]
[421701014,1778047896000,-334.0,0.00019543,2]
[421701023,1778047896000,-2000.0,0.00019753,2]
[421701025,1778047896000,-431.73147682,0.0001981,2]
[421701015,1778047896000,-1500.0,0.00019579,2]
[421701024,1778047896000,-1500.0,0.0001981,2]
[421701016,1778047896000,-169.59,0.00019599,2]
[421701017,1778047896000,-1072.84664855,0.000196,2]
[421701020,1778047896000,-1129.27740958,0.00019753,2]
[421701019,1778047896000,-1500.0,0.00019753,2]
[421701022,1778047896000,-500.0,0.00019753,2]
[421701018,1778047896000,-1856.51,0.0001963,2]
[421700966,1778047896000,-500.0,0.00018657,2]
[421701026,1778047896000,-1500.0,0.0001981,2]
[421701028,1778047896000,-1500.0,0.0001981,2]
[421701029,1778047896000,-9100.0,0.000199,7]
[421701000,1778047896000,-1000.0,0.00019205,2]
[421701001,1778047896000,-1000.0,0.00019205,2]
[421701027,1778047896000,-1500.0,0.0001981,2]
[421700995,1778047896000,-500.0,0.00019178,2]
[421700997,1778047896000,-380.41984111,0.00019178,2]
[421700971,1778047896000,-500.0,0.00018714,2]
[421700969,1778047896000,-500.0,0.00018657,2]
[421700968,1778047896000,-500.0,0.00018657,2]
[421700972,1778047896000,-500.0,0.00018714,2]
[421700975,1778047896000,-500.0,0.00018714,2]
[421700976,1778047896000,-500.0,0.00018714,2]
[421700981,1778047896000,-162.55277151,0.0001885,2]
[421700980,1778047896000,-529.18551436,0.00018823,2]
[421700979,1778047896000,-4498.97158994,0.0001872,2]
[421700977,1778047896000,-521.03068147,0.00018714,2]
[421700982,1778047896000,-160.0,0.0001885,2]
[421700978,1778047896000,-500.0,0.00018714,2]
[421700986,1778047896000,-500.0,0.00019,2]
[421700970,1778047896000,-500.0,0.00018714,2]
[421700984,1778047896000,-1072.84664855,0.000189,2]
[421700987,1778047896000,-1000.0,0.00019031,2]
[421700992,1778047896000,-500.0,0.00019178,2]
[421700988,1778047896000,-796.40463895,0.00019031,2]
[421700990,1778047896000,-23548.82515578,0.00019166,2]
[421700993,1778047896000,-500.0,0.00019178,2]
[421700998,1778047896000,-11082.87,0.00019178,2]
[421700996,1778047896000,-500.0,0.00019178,2]
[421700991,1778047896000,-500.0,0.00019178,2]
[421700999,1778047896000,-1072.84664855,0.000192,2]
[421700989,1778047896000,-239.0,0.00019162,2]
[421700983,1778047896000,-199.23999669,0.000189,2]
[421700994,1778047896000,-500.0,0.00019178,2]
[421700985,1778047896000,-1072.84664855,0.00019,2]
[421701064,1778047897000,-346.0,0.00021,2]
[421701068,1778047897000,-171.0,0.00021,2]
[421701066,1778047897000,-354.0,0.00021,2]
[421701065,1778047897000,-1170.0,0.00021,2]
[421701057,1778047897000,-500.0,0.00020748,2]
[421701073,1778047897000,-2000.0,0.00021152,2]
[421701060,1778047897000,-2500.0,0.00020906,2]
[421701062,1778047897000,-368.0,0.00021,2]
[421701059,1778047897000,-2500.0,0.00020906,2]
[421701074,1778047897000,-2000.0,0.00021152,2]
[421701063,1778047897000,-288.0,0.00021,2]
[421701077,1778047897000,-2000.0,0.00021152,2]
[421701072,1778047897000,-2000.0,0.00021152,2]
[421701070,1778047897000,-2000.0,0.00021152,2]
[421701071,1778047897000,-2000.0,0.00021152,2]
[421701069,1778047897000,-2000.0,0.00021152,2]
[421701075,1778047897000,-2000.0,0.00021152,2]
[421701085,1778047897000,-2000.0,0.00021152,2]
[421701084,1778047897000,-2000.0,0.00021152,2]
[421701076,1778047897000,-2000.0,0.00021152,2]
[421701086,1778047897000,-2000.0,0.00021152,2]
[421701078,1778047897000,-2000.0,0.00021152,2]
[421701053,1778047897000,-1461.74205325,0.00020358,2]
[421701079,1778047897000,-2000.0,0.00021152,2]
[421701067,1778047897000,-564.0,0.00021,2]
[421701056,1778047897000,-2500.0,0.00020675,2]
[421701041,1778047897000,-354.0,0.0002,2]
[421701055,1778047897000,-500.0,0.00020465,2]
[421701082,1778047897000,-2000.0,0.00021152,2]
[421701035,1778047897000,-159.91306228,0.0002,2]
[421701030,1778047897000,-400.0,0.0002,2]
[421701032,1778047897000,-400.0,0.0002,2]
[421701031,1778047897000,-8829.0,0.0002,2]
[421701034,1778047897000,-159.91306228,0.0002,2]
[421701033,1778047897000,-159.91306228,0.0002,2]
[421701037,1778047897000,-167.28566167,0.0002,2]
[421701045,1778047897000,-171.0,0.0002,2]
[421701046,1778047897000,-162.55277151,0.0002,7]
[421701047,1778047897000,-2000.0,0.00020127,2]
[421701036,1778047897000,-368.0,0.0002,2]
[421701039,1778047897000,-346.0,0.0002,2]
[421701040,1778047897000,-1170.0,0.0002,2]
[421701038,1778047897000,-288.0,0.0002,2]
[421701043,1778047897000,-564.0,0.0002,2]
[421701044,1778047897000,-1000.0,0.0002,7]
[421701042,1778047897000,-4804.0,0.0002,2]
[421701048,1778047897000,-1951.75217019,0.00020301,2]
[421701050,1778047897000,-2000.0,0.00020358,2]
[421701049,1778047897000,-1506.15979396,0.00020301,2]
[421701051,1778047897000,-2000.0,0.00020358,2]
[421701052,1778047897000,-2017.16375829,0.00020358,2]
[421701061,1778047897000,-400.0,0.00021,2]
[421701054,1778047897000,-2502.4,0.00020381,2]
[421701058,1778047897000,-150.0,0.0002084,2]
[421701081,1778047897000,-2000.0,0.00021152,2]
[421701137,1778047897000,-171.0,0.00022,2]
[421701080,1778047897000,-2000.0,0.00021152,2]
[421701117,1778047897000,-2000.0,0.00021649,2]
[421701115,1778047897000,-2000.0,0.00021649,2]
[421701116,1778047897000,-2000.0,0.00021649,2]
[421701113,1778047897000,-2000.0,0.00021649,2]
[421701121,1778047897000,-2000.0,0.00021649,2]
[421701123,1778047897000,-2000.0,0.00021649,2]
[421701122,1778047897000,-2000.0,0.00021649,2]
[421701120,1778047897000,-2000.0,0.00021649,2]
[421701136,1778047897000,-564.0,0.00022,2]
[421701125,1778047897000,-5000.0,0.00021918,2]
[421701124,1778047897000,-2000.0,0.00021649,2]
[421701126,1778047897000,-225.3,0.00021918,5]
[421701127,1778047897000,-1000.0,0.00021918,5]
[421701128,1778047897000,-350.0,0.00021936,2]
[421701133,1778047897000,-346.0,0.00022,2]
[421701129,1778047897000,-400.0,0.00022,2]
[421701131,1778047897000,-368.0,0.00022,2]
[421701132,1778047897000,-288.0,0.00022,2]
[421701134,1778047897000,-1170.0,0.00022,2]
[421701130,1778047897000,-450.0,0.00022,2]
[421701138,1778047897000,-1180.45515395,0.00022002,2]
[421701139,1778047897000,-150.0,0.00022055,2]
[421701141,1778047897000,-600.0,0.00022135,7]
[421701140,1778047897000,-1650.0,0.00022135,2]
[421701083,1778047897000,-2000.0,0.00021152,2]
[421701119,1778047897000,-2000.0,0.00021649,2]
[421701118,1778047897000,-2000.0,0.00021649,2]
[421701135,1778047897000,-354.0,0.00022,2]
[421701112,1778047897000,-2000.0,0.00021649,2]
[421701088,1778047897000,-2000.0,0.00021152,2]
[421701114,1778047897000,-2000.0,0.00021649,2]
[421701089,1778047897000,-565.54992568,0.00021223,2]
[421701091,1778047897000,-250.0,0.00021388,2]
[421701087,1778047897000,-2000.0,0.00021152,2]
[421701092,1778047897000,-5229.91238371,0.00021417,2]
[421701090,1778047897000,-23548.82515578,0.00021233,2]
[421701093,1778047897000,-2856.57211453,0.00021454,2]
[421701096,1778047897000,-1000.0,0.00021645,2]
[421701094,1778047897000,-3000.0,0.00021454,2]
[421701097,1778047897000,-1000.0,0.00021645,2]
[421701098,1778047897000,-1000.0,0.00021645,2]
[421701099,1778047897000,-1000.0,0.00021645,2]
[421701095,1778047897000,-1000.0,0.00021645,2]
[421701107,1778047897000,-2000.0,0.00021649,2]
[421701104,1778047897000,-981.0,0.00021645,2]
[421701108,1778047897000,-2000.0,0.00021649,2]
[421701106,1778047897000,-2000.0,0.00021649,2]
[421701103,1778047897000,-1000.0,0.00021645,2]
[421701101,1778047897000,-1000.0,0.00021645,2]
[421701105,1778047897000,-2000.0,0.00021649,2]
[421701110,1778047897000,-2000.0,0.00021649,2]
[421701100,1778047897000,-1000.0,0.00021645,2]
[421701109,1778047897000,-2000.0,0.00021649,2]
[421701111,1778047897000,-2000.0,0.00021649,2]
[421701102,1778047897000,-1000.0,0.00021645,2]
[421701177,1778047898000,-1500.0,0.00023354,2]
[421701181,1778047898000,-2000.0,0.00023902,2]
[421701178,1778047898000,-1500.0,0.00023354,2]
[421701180,1778047898000,-450.0,0.00023698,2]
[421701179,1778047898000,-1500.0,0.00023354,2]
[421701173,1778047898000,-1000.0,0.00023288,15]
[421701176,1778047898000,-1500.0,0.00023354,2]
[421701174,1778047898000,-23548.82515578,0.00023299,2]
[421701171,1778047898000,-500.0,0.00023204,2]
[421701182,1778047898000,-2000.0,0.00023902,2]
[421701175,1778047898000,-1500.0,0.00023354,2]
[421701185,1778047898000,-2004.32156241,0.00023902,2]
[421701201,1778047898000,-27651.22,0.00024174,2]
[421701186,1778047898000,-400.0,0.00024,2]
[421701183,1778047898000,-2000.0,0.00023902,2]
[421701188,1778047898000,-368.0,0.00024,2]
[421701189,1778047898000,-288.0,0.00024,2]
[421701192,1778047898000,-150.0,0.00024,14]
[421701190,1778047898000,-346.0,0.00024,2]
[421701191,1778047898000,-1170.0,0.00024,2]
[421701187,1778047898000,-500.0,0.00024,2]
[421701202,1778047898000,-550.0,0.00024246,2]
[421701203,1778047898000,-2502.4,0.00024324,2]
[421701194,1778047898000,-564.0,0.00024,2]
[421701172,1778047898000,-551.68,0.00023263,2]
[421701184,1778047898000,-2000.0,0.00023902,2]
[421701169,1778047898000,-254.68210944,0.00023026,21]
[421701147,1778047898000,-500.0,0.00022258,2]
[421701164,1778047898000,-346.0,0.00023,2]
[421701146,1778047898000,-500.0,0.00022258,2]
[421701199,1778047898000,-3956.45,0.00024174,2]
[421701142,1778047898000,-2000.0,0.00022222,2]
[421701143,1778047898000,-500.0,0.00022258,2]
[421701144,1778047898000,-500.0,0.00022258,2]
[421701145,1778047898000,-500.0,0.00022258,2]
[421701149,1778047898000,-517.65628542,0.00022258,2]
[421701155,1778047898000,-250.0,0.00022602,2]
[421701148,1778047898000,-163.68234244,0.00022258,2]
[421701151,1778047898000,-168.01415882,0.00022407,2]
[421701158,1778047898000,-1000.0,0.00022806,2]
[421701154,1778047898000,-165.96198961,0.00022484,2]
[421701163,1778047898000,-288.0,0.00023,2]
[421701152,1778047898000,-1412.32,0.00022466,2]
[421701157,1778047898000,-1000.0,0.00022806,2]
[421701150,1778047898000,-2502.4,0.00022353,2]
[421701156,1778047898000,-1000.0,0.00022806,2]
[421701160,1778047898000,-1000.0,0.00022806,2]
[421701159,1778047898000,-1000.0,0.00022806,2]
[421701170,1778047898000,-350.0,0.0002315,2]
[421701161,1778047898000,-400.0,0.00023,2]
[421701162,1778047898000,-368.0,0.00023,2]
[421701168,1778047898000,-171.0,0.00023,2]
[421701165,1778047898000,-1170.0,0.00023,2]
[421701167,1778047898000,-564.0,0.00023,2]
[421701166,1778047898000,-354.0,0.00023,2]
[421701153,1778047898000,-1158.37,0.00022466,2]
[421701195,1778047898000,-171.0,0.00024,2]
[421701193,1778047898000,-354.0,0.00024,2]
[421701197,1778047898000,-151.0,0.00024171,7]
[421701235,1778047898000,-1183.61790507,0.00025,2]
[421701236,1778047898000,-365.81483075,0.00025,2]
[421701232,1778047898000,-384.43715,0.00025,2]
[421701231,1778047898000,-400.40980863,0.00025,2]
[421701234,1778047898000,-357.25442395,0.00025,2]
[421701237,1778047898000,-566.88288883,0.00025,2]
[421701233,1778047898000,-298.46179971,0.00025,2]
[421701238,1778047898000,-173.03519017,0.00025,2]
[421701241,1778047898000,-259.25,0.00025234,30]
[421701242,1778047898000,-23548.82515578,0.00025366,2]
[421701245,1778047898000,-310.0,0.0002561,6]
[421701246,1778047898000,-5229.91238371,0.00025643,2]
[421701230,1778047898000,-3000.0,0.00024998,2]
[421701244,1778047898000,-3385.17092439,0.00025546,2]
[421701247,1778047898000,-464.89565989,0.00025693,21]
[421701243,1778047898000,-259.25,0.00025523,2]
[421701252,1778047898000,-500.0,0.00025785,2]
[421701249,1778047898000,-350.0,0.00025753,2]
[421701253,1778047898000,-500.0,0.00025785,2]
[421701250,1778047898000,-500.0,0.00025785,2]
[421701255,1778047898000,-500.0,0.00025785,2]
[421701254,1778047898000,-500.0,0.00025785,2]
[421701257,1778047898000,-405.12,0.00025786,2]
[421701258,1778047898000,-3956.45,0.00025786,2]
[421701256,1778047898000,-500.0,0.00025785,2]
[421701196,1778047898000,-380.22,0.0002411,2]
[421701251,1778047898000,-500.0,0.00025785,2]
[421701228,1778047898000,-401.94273924,0.00024794,2]
[421701248,1778047898000,-150.0,0.00025753,2]
[421701239,1778047898000,-1083.35615259,0.00025187,2]
[421701198,1778047898000,-405.12,0.00024174,2]
[421701240,1778047898000,-250.0,0.00025205,2]
[421701200,1778047898000,-2514.53,0.00024174,2]
[421701205,1778047898000,-1508.23716968,0.0002445,2]
[421701211,1778047898000,-500.0,0.00024657,2]
[421701207,1778047898000,-1634.77125774,0.0002445,2]
[421701206,1778047898000,-2500.0,0.0002445,2]
[421701204,1778047898000,-1369.28734531,0.0002445,2]
[421701209,1778047898000,-500.0,0.00024657,2]
[421701212,1778047898000,-500.0,0.00024657,2]
[421701208,1778047898000,-500.0,0.00024657,2]
[421701210,1778047898000,-500.0,0.00024657,2]
[421701226,1778047898000,-259.25,0.00024658,2]
[421701215,1778047898000,-500.0,0.00024657,2]
[421701213,1778047898000,-500.0,0.00024657,2]
[421701225,1778047898000,-150.0,0.00024658,2]
[421701229,1778047898000,-259.25,0.00024946,7]
[421701220,1778047898000,-500.0,0.00024657,2]
[421701218,1778047898000,-500.0,0.00024657,2]
[421701222,1778047898000,-1000.0,0.00024658,25]
[421701224,1778047898000,-1000.0,0.00024658,2]
[421701219,1778047898000,-500.0,0.00024657,2]
[421701221,1778047898000,-500.0,0.00024657,2]
[421701217,1778047898000,-500.0,0.00024657,2]
[421701216,1778047898000,-500.0,0.00024657,2]
[421701214,1778047898000,-500.0,0.00024657,2]
[421701227,1778047898000,-2000.0,0.00024691,2]
[421701223,1778047898000,-150.0,0.00024658,2]
[421701300,1778047899000,-2000.0,0.00027161,2]
[421701303,1778047899000,-1177.93,0.00027265,2]
[421701296,1778047899000,-1177.93,0.00026886,2]
[421701298,1778047899000,-1177.93,0.00027012,2]
[421701299,1778047899000,-1177.93,0.00027139,2]
[421701297,1778047899000,-259.25,0.00026964,30]
[421701295,1778047899000,-550.0,0.00026849,2]
[421701293,1778047899000,-1177.93,0.00026759,2]
[421701306,1778047899000,-163.16558903,0.00027373,2]
[421701304,1778047899000,-500.0,0.00027373,2]
[421701294,1778047899000,-150.0,0.00026849,2]
[421701305,1778047899000,-500.0,0.00027373,2]
[421701301,1778047899000,-8192.82640478,0.00027177,2]
[421701302,1778047899000,-259.25,0.00027253,2]
[421701321,1778047899000,-500.0,0.00027399,2]
[421701311,1778047899000,-650.0,0.00027397,5]
[421701309,1778047899000,-230.88441929,0.00027397,2]
[421701310,1778047899000,-1500.0,0.00027397,2]
[421701307,1778047899000,-1177.93,0.00027392,2]
[421701317,1778047899000,-1000.0,0.00027397,45]
[421701312,1778047899000,-300.0,0.00027397,2]
[421701316,1778047899000,-16233.34,0.00027397,10]
[421701313,1778047899000,-1015.9,0.00027397,2]
[421701314,1778047899000,-1000.0,0.00027397,20]
[421701315,1778047899000,-19480.01,0.00027397,10]
[421701318,1778047899000,-500.0,0.00027399,10]
[421701331,1778047899000,-1177.93,0.00027645,2]
[421701322,1778047899000,-266.35,0.000274,7]
[421701287,1778047899000,-1177.93,0.0002638,2]
[421701308,1778047899000,-151.0,0.00027397,7]
[421701289,1778047899000,-1177.93,0.00026506,2]
[421701266,1778047899000,-500.0,0.00026027,2]
[421701286,1778047899000,-1106.2881639,0.00026308,2]
[421701330,1778047899000,-259.25,0.00027541,7]
[421701262,1778047899000,-550.0,0.00026,2]
[421701264,1778047899000,-271.58,0.00026027,7]
[421701265,1778047899000,-500.0,0.00026027,2]
[421701263,1778047899000,-1177.93,0.00026,2]
[421701261,1778047899000,-259.25,0.00025811,7]
[421701260,1778047899000,-27651.22,0.00025786,2]
[421701259,1778047899000,-302.87,0.00025786,2]
[421701267,1778047899000,-1000.0,0.00026027,35]
[421701270,1778047899000,-1177.93,0.00026127,2]
[421701269,1778047899000,-2320.6938766,0.00026123,2]
[421701268,1778047899000,-259.25,0.00026099,30]
[421701271,1778047899000,-544.06732421,0.00026226,2]
[421701279,1778047899000,-171.41074173,0.00026226,2]
[421701278,1778047899000,-500.0,0.00026226,2]
[421701274,1778047899000,-500.0,0.00026226,2]
[421701275,1778047899000,-500.0,0.00026226,2]
[421701276,1778047899000,-500.0,0.00026226,2]
[421701272,1778047899000,-500.0,0.00026226,2]
[421701277,1778047899000,-500.0,0.00026226,2]
[421701281,1778047899000,-1177.93,0.00026253,2]
[421701280,1778047899000,-301980.6571313,0.00026227,2]
[421701292,1778047899000,-259.25,0.00026676,7]
[421701291,1778047899000,-200.0,0.00026671,2]
[421701283,1778047899000,-1599.1438806,0.00026266,2]
[421701282,1778047899000,-36872.2723072,0.00026266,2]
[421701284,1778047899000,-2502.4,0.00026296,2]
[421701285,1778047899000,-450.0,0.00026301,2]
[421701288,1778047899000,-259.25,0.00026388,2]
[421701290,1778047899000,-1177.93,0.00026633,2]
[421701319,1778047899000,-500.0,0.00027399,30]
[421701273,1778047899000,-500.0,0.00026226,2]
[421701329,1778047899000,-1177.93,0.00027518,2]
[421701369,1778047899000,-173.0,0.00028763,2]
[421701371,1778047899000,-165.93,0.0002878,7]
[421701358,1778047899000,-1177.93,0.00028278,2]
[421701366,1778047899000,-200.0,0.00028652,2]
[421701360,1778047899000,-200.0,0.00028368,2]
[421701361,1778047899000,-200.0,0.00028368,2]
[421701364,1778047899000,-1177.93,0.00028531,2]
[421701368,1778047899000,-1177.93,0.00028657,2]
[421701362,1778047899000,-1177.93,0.00028404,2]
[421701367,1778047899000,-200.0,0.00028652,2]
[421701363,1778047899000,-199.36,0.00028493,2]
[421701365,1778047899000,-165.93,0.0002863,2]
[421701389,1778047899000,-172.83,0.00029074,30]
[421701373,1778047899000,-172.83,0.00028852,7]
[421701372,1778047899000,-1177.93,0.00028784,2]
[421701378,1778047899000,-165.93,0.00028931,30]
[421701374,1778047899000,-172.83,0.00028883,30]
[421701383,1778047899000,-183.0,0.00028997,2]
[421701377,1778047899000,-172.83,0.00028915,2]
[421701376,1778047899000,-1177.93,0.0002891,2]
[421701385,1778047899000,-1177.93,0.00029037,2]
[421701384,1778047899000,-172.83,0.0002901,2]
[421701379,1778047899000,-200.0,0.00028938,2]
[421701382,1778047899000,-172.83,0.00028979,30]
[421701381,1778047899000,-172.83,0.00028947,7]
[421701387,1778047899000,-172.83,0.00029042,7]
[421701388,1778047899000,-517.8167963,0.00029052,2]
[421701386,1778047899000,-160.38,0.00029041,2]
[421701320,1778047899000,-500.0,0.00027399,2]
[421701370,1778047899000,-1000.0,0.00028767,55]
[421701359,1778047899000,-500.0,0.0002834,16]
[421701380,1778047899000,-200.0,0.00028938,2]
[421701355,1778047899000,-254.44,0.000281,14]
[421701351,1778047899000,-169.55,0.00028,2]
[421701323,1778047899000,-73732.17,0.000274,7]
[421701328,1778047899000,-500.0,0.00027515,14]
[421701324,1778047899000,-500.0,0.000274,7]
[421701327,1778047899000,-1856.51,0.00027482,2]
[421701326,1778047899000,-23548.82515578,0.00027433,2]
[421701332,1778047899000,-570.02413569,0.00027767,2]
[421701339,1778047899000,-2000.0,0.00027827,2]
[421701338,1778047899000,-2000.0,0.00027827,2]
[421701333,1778047899000,-1177.93,0.00027771,2]
[421701337,1778047899000,-2000.0,0.00027827,2]
[421701344,1778047899000,-671.63544967,0.00027921,2]
[421701336,1778047899000,-2000.0,0.00027827,2]
[421701334,1778047899000,-2000.0,0.00027827,2]
[421701335,1778047899000,-2000.0,0.00027827,2]
[421701325,1778047899000,-551.68,0.00027418,30]
[421701343,1778047899000,-632.20967093,0.00027921,5]
[421701340,1778047899000,-2000.0,0.00027827,2]
[421701354,1778047899000,-1177.93,0.00028024,2]
[421701352,1778047899000,-169.55,0.00028,2]
[421701353,1778047899000,-169.55,0.00028,2]
[421701356,1778047899000,-1177.93,0.00028151,2]
[421701349,1778047899000,-160.0,0.00028,7]
[421701348,1778047899000,-160.0,0.00028,10]
[421701350,1778047899000,-162.55277151,0.00028,7]
[421701347,1778047899000,-600.0,0.00028,2]
[421701357,1778047899000,-2502.4,0.00028267,2]
[421701346,1778047899000,-661.22043059,0.00027945,5]
[421701342,1778047899000,-1177.93,0.00027898,2]
[421701345,1778047899000,-150.0,0.00027945,2]
[421701341,1778047899000,-259.25,0.0002783,30]
[421701430,1778047900000,-1051.93062852,0.00029534,5]
[421701426,1778047900000,-1027.49006857,0.00029534,5]
[421701427,1778047900000,-1071.99994419,0.00029534,5]
[421701425,1778047900000,-1080.38847092,0.00029534,5]
[421701414,1778047900000,-200.92336054,0.0002926,2]
[421701423,1778047900000,-1075.65936759,0.00029534,5]
[421701412,1778047900000,-172.99,0.00029232,7]
[421701437,1778047900000,-795.0,0.00029583,2]
[421701421,1778047900000,-150.0,0.00029534,2]
[421701424,1778047900000,-1111.37424905,0.00029534,5]
[421701422,1778047900000,-1020.27026741,0.00029534,5]
[421701434,1778047900000,-1177.93,0.00029543,2]
[421701436,1778047900000,-850.0,0.00029583,2]
[421701428,1778047900000,-1085.47670795,0.00029534,5]
[421701431,1778047900000,-1077.39331824,0.00029534,5]
[421701432,1778047900000,-1106.1112981,0.00029534,5]
[421701435,1778047900000,-850.0,0.00029583,2]
[421701433,1778047900000,-1106.2062522,0.00029534,5]
[421701439,1778047900000,-200.0,0.00029589,2]
[421701450,1778047900000,-2000.0,0.00029589,2]
[421701451,1778047900000,-2000.0,0.00029589,2]
[421701417,1778047900000,-1177.93,0.00029416,2]
[421701438,1778047900000,-200.0,0.00029589,2]
[421701429,1778047900000,-1024.53375529,0.00029534,5]
[421701420,1778047900000,-200.0,0.0002952,2]
[421701399,1778047900000,-2000.0,0.00029121,2]
[421701415,1778047900000,-1177.93,0.0002929,2]
[421701440,1778047900000,-200.0,0.00029589,2]
[421701397,1778047900000,-2000.0,0.00029121,2]
[421701398,1778047900000,-2000.0,0.00029121,2]
[421701390,1778047900000,-165.93,0.00029082,2]
[421701392,1778047900000,-2000.0,0.00029121,2]
[421701393,1778047900000,-2000.0,0.00029121,2]
[421701394,1778047900000,-2000.0,0.00029121,2]
[421701391,1778047900000,-172.83,0.00029105,2]
[421701396,1778047900000,-2000.0,0.00029121,2]
[421701395,1778047900000,-2000.0,0.00029121,2]
[421701408,1778047900000,-8227.3160249,0.00029211,2]
[421701413,1778047900000,-246.8462551,0.00029258,2]
[421701409,1778047900000,-356.8172301,0.00029211,2]
[421701406,1778047900000,-172.83,0.00029201,2]
[421701404,1778047900000,-172.83,0.00029169,30]
[421701401,1778047900000,-2000.0,0.00029121,2]
[421701402,1778047900000,-172.83,0.00029137,7]
[421701405,1778047900000,-500.0,0.00029191,17]
[421701407,1778047900000,-8192.82640478,0.00029207,2]
[421701418,1778047900000,-23548.82515578,0.00029499,2]
[421701419,1778047900000,-200.0,0.0002952,2]
[421701410,1778047900000,-200.0,0.00029228,2]
[421701411,1778047900000,-200.0,0.00029228,2]
[421701416,1778047900000,-73732.17,0.000293,7]
[421701403,1778047900000,-1177.93,0.00029163,2]
[421701441,1778047900000,-200.0,0.00029589,2]
[421701400,1778047900000,-2000.0,0.00029121,2]
[421701449,1778047900000,-2000.0,0.00029589,2]
[421701477,1778047900000,-551.68,0.00029999,30]
[421701475,1778047900000,-551.68,0.00029999,30]
[421701476,1778047900000,-551.68,0.00029999,30]
[421701478,1778047900000,-551.78631548,0.00029999,30]
[421701482,1778047900000,-8692.0,0.0003,2]
[421701483,1778047900000,-200.0,0.0003,2]
[421701481,1778047900000,-176756.29887075,0.0003,60]
[421701480,1778047900000,-162.55277151,0.0003,7]
[421701485,1778047900000,-200.0,0.0003,2]
[421701479,1778047900000,-650.0,0.0003,2]
[421701487,1778047900000,-200.0,0.0003,2]
[421701471,1778047900000,-2000.0,0.00029937,7]
[421701486,1778047900000,-200.0,0.0003,2]
[421701498,1778047900000,-289.47091096,0.00030136,14]
[421701489,1778047900000,-2000.0,0.00030037,7]